fUST/lending_fUST_20250130
["ID","MTS","AMOUNT","RATE_DAILY","PERIOD"]
[350928282,1738209048894,-642.024491,0.00016712,2]
[350928283,1738209048904,-642.024491,0.00016712,2]
[350928284,1738209048915,-642.024491,0.00016712,2]
[350928285,1738209048925,-642.024491,0.00016712,2]
[350928286,1738209048935,-1029.2,0.00016712,2]
[350928287,1738209048945,-1012.49,0.00016712,2]
[350928288,1738209048955,-2284.74,0.00016712,2]
[350928289,1738209048964,-1276.44,0.00016712,2]
[350928290,1738209048974,-151.0,0.00016712,2]
[350928291,1738209048984,-151.0,0.00016712,2]
[350928292,1738209048994,-6710.07,0.00016712,2]
[350928293,1738209049004,-667.53,0.00016712,2]
[350928294,1738209049014,-977.82,0.00016712,2]
[350928295,1738209049023,-1736.14,0.00016712,2]
[350928296,1738209049033,-1102.24,0.00016712,2]
[350928297,1738209049043,-500.0,0.00016712,2]
[350928298,1738209049053,-156.924049,0.00016712,2]
[350928299,1738209049063,-156.924049,0.00016712,2]
[350928300,1738209049073,-3441.28,0.00016712,2]
[350928301,1738209049083,-156.924049,0.00016712,2]
[350928302,1738209049093,-500.0,0.00016712,2]
[350928303,1738209049103,-156.924049,0.00016712,2]
[350928304,1738209049113,-500.0,0.00016712,2]
[350928305,1738209049123,-987.75,0.00016712,2]
[350928306,1738209049133,-4247.91,0.00016712,2]
[350928307,1738209049143,-3427.15,0.00016712,2]
[350928308,1738209049154,-500.0,0.00016712,2]
[350928309,1738209049164,-6733.07,0.00016712,2]
[350928310,1738209049174,-208.363582,0.00016712,2]
[350928311,1738209049183,-208.363582,0.00016712,2]
[350928312,1738209049192,-208.363582,0.00016712,2]
[350928313,1738209049202,-208.363582,0.00016712,2]
[350928314,1738209049211,-500.0,0.00016712,2]
[350928315,1738209049221,-2062.54,0.00016712,2]
[350928316,1738209049230,-160.0,0.0001675,3]
[350928317,1738209049240,-152.0,0.00016773,2]
[350928318,1738209049250,-19289.04362709,0.000168,5]
[350928319,1738209049259,-151.0,0.000168,2]
[350928320,1738209049269,-151.0,0.000168,2]
[350928321,1738209049279,-151.0,0.000168,2]
[350928322,1738209049290,-156.924049,0.000168,2]
[350928323,1738209049300,-156.924049,0.000168,2]
[350928324,1738209049314,-208.363582,0.000168,2]
[350928325,1738209049324,-208.36358,0.000168,2]
[350928326,1738209049334,-151.0,0.00016816,2]
[350928327,1738209049344,-667.034,0.00016816,2]
[350928328,1738209049355,-1200.0,0.00016816,2]
[350928329,1738209049365,-208.79934751,0.00016849,2]
[350928330,1738209049374,-150.11,0.00016849,2]
[350928331,1738209049385,-500.0,0.00016849,2]
[350928332,1738209049395,-150.11,0.00016849,2]
[350928333,1738209049405,-913.17,0.00016849,2]
[350928334,1738209049415,-500.0,0.00016849,2]
[350928335,1738209049424,-500.0,0.00016849,2]
[350928336,1738209049434,-500.0,0.00016849,2]
[350928337,1738209049443,-792.96,0.00016849,2]
[350928338,1738209049452,-582.93,0.00016849,2]
[350928339,1738209049461,-500.0,0.00016849,2]
[350928340,1738209049470,-500.0,0.00016849,2]
[350928341,1738209049479,-500.0,0.00016849,2]
[350928342,1738209049489,-500.0,0.00016849,2]
[350928343,1738209049498,-536.94,0.00016849,2]
[350928344,1738209049507,-500.0,0.00016849,2]
[350928345,1738209049516,-500.0,0.00016849,2]
[350928346,1738209049525,-151.0,0.00016849,2]
[350928347,1738209049535,-228.378604,0.00016849,2]
[350928348,1738209049544,-500.0,0.00016849,2]
[350928349,1738209049553,-1047.61,0.00016849,2]
[350928350,1738209049562,-622.94,0.00016849,2]
[350928351,1738209049572,-500.0,0.00016849,2]
[350928352,1738209049581,-500.0,0.00016849,2]
[350928353,1738209049590,-500.0,0.00016849,2]
[350928354,1738209049599,-500.0,0.00016849,2]
[350928355,1738209049608,-1288.53,0.00016849,2]
[350928356,1738209049618,-1728.2,0.00016849,2]
[350928357,1738209049628,-542.43,0.00016849,2]
[350928358,1738209049637,-833.99,0.00016849,2]
[350928359,1738209049647,-615.23,0.00016849,2]
[350928360,1738209049657,-533.94,0.00016849,2]
[350928361,1738209049667,-500.0,0.00016849,2]
[350928362,1738209049676,-1081.71,0.00016849,2]
[350928363,1738209049686,-578.58,0.00016849,2]
[350928364,1738209049695,-18833.68,0.00016849,2]
[350928365,1738209049705,-1435.56,0.00016849,2]
[350928366,1738209049714,-240.186008,0.00016849,2]
[350928367,1738209049724,-240.186008,0.00016849,2]
[350928368,1738209049733,-1106.24,0.00016849,2]
[350928369,1738209049743,-240.186008,0.00016849,2]
[350928370,1738209049753,-240.186002,0.00016849,2]
[350928371,1738209049762,-2144.9,0.00016849,2]
[350928372,1738209049771,-707.88,0.00016849,2]
[350928373,1738209049780,-899.25,0.00016849,2]
[350928374,1738209049790,-151.0,0.00016849,2]
[350928375,1738209049801,-151.0,0.00016849,2]
[350928376,1738209049811,-500.0,0.00016849,2]
[350928377,1738209049821,-718.31,0.00016849,2]
[350928378,1738209049831,-151.0,0.00016849,2]
[350928379,1738209049842,-151.0,0.00016849,2]
[350928380,1738209049853,-722.09,0.00016849,2]
[350928381,1738209049862,-1032.93,0.00016849,2]
[350928382,1738209049872,-500.0,0.00016849,2]
[350928383,1738209049881,-1972.78,0.00016849,2]
[350928384,1738209049891,-642.024491,0.00016849,2]
[350928385,1738209049901,-642.024491,0.00016849,2]
[350928386,1738209049913,-642.024491,0.00016849,2]
[350928387,1738209049923,-642.024489,0.00016849,2]
[350928388,1738209049932,-1029.2,0.00016849,2]
[350928389,1738209049941,-1012.49,0.00016849,2]
[350928390,1738209049950,-2284.74,0.00016849,2]
[350928391,1738209049960,-1276.44,0.00016849,2]
[350928392,1738209049972,-151.0,0.00016849,2]
[350928393,1738209049982,-151.0,0.00016849,2]
[350928394,1738209049993,-6710.07,0.00016849,2]
[350928395,1738209050004,-667.53,0.00016849,2]
[350928396,1738209050014,-977.82,0.00016849,2]
[350928397,1738209050024,-1736.14,0.00016849,2]
[350928398,1738209050034,-1102.24,0.00016849,2]
[350928399,1738209050043,-474.4673915,0.00016849,2]
[350928400,1738209050053,-156.924049,0.00016849,2]
[350928401,1738209050063,-3441.28,0.00016849,2]
[350928402,1738209050073,-500.0,0.00016849,2]
[350928403,1738209050082,-156.92405722,0.00016849,2]
[350928404,1738209050091,-500.0,0.00016849,2]
[350928405,1738209050100,-987.75,0.00016849,2]
[350928406,1738209050109,-4247.91,0.00016849,2]
[350928407,1738209050121,-3427.15,0.00016849,2]
[350928408,1738209050132,-500.0,0.00016849,2]
[350928409,1738209050141,-6733.07,0.00016849,2]
[350928410,1738209050152,-500.0,0.00016849,2]
[350928411,1738209050162,-2062.54,0.00016849,2]
[350928412,1738209050171,-2000.0,0.000169,2]
[350928413,1738209050180,-2000.0,0.000169,2]
[350928414,1738209050189,-2000.0,0.000169,2]
[350928415,1738209050198,-151.0,0.000169,2]
[350928416,1738209050207,-151.0,0.000169,2]
[350928417,1738209050216,-151.0,0.000169,2]
[350928418,1738209050225,-151.0,0.000169,2]
[350928419,1738209050235,-151.0,0.000169,2]
[350928420,1738209050244,-502.34740706,0.00016973,2]
[350928421,1738209050253,-500.0,0.00016973,2]
[350928422,1738209050262,-507.92833322,0.00016973,2]
[350928423,1738209050271,-259.33124282,0.00016973,2]
[350928424,1738209050280,-501.1427391,0.00016973,2]
[350928425,1738209050289,-156.25693645,0.00016973,2]
[350928426,1738209050299,-501.53434199,0.00016973,2]
[350928427,1738209050311,-550.63971083,0.0001698,2]
[350928428,1738209050321,-913.17,0.00016986,2]
[350928429,1738209050331,-500.0,0.00016986,2]
[350928430,1738209050341,-500.0,0.00016986,2]
[350928431,1738209050351,-500.0,0.00016986,2]
[350928432,1738209050360,-792.96,0.00016986,2]
[350928433,1738209050370,-582.93,0.00016986,2]
[350928434,1738209050379,-500.0,0.00016986,2]
[350928435,1738209050389,-500.0,0.00016986,2]
[350928436,1738209050399,-500.0,0.00016986,2]
[350928437,1738209050408,-500.0,0.00016986,2]
[350928438,1738209050417,-536.94,0.00016986,2]
[350928439,1738209050426,-500.0,0.00016986,2]
[350928440,1738209050435,-500.0,0.00016986,2]
[350928441,1738209050445,-500.0,0.00016986,2]
[350928442,1738209050454,-1047.61,0.00016986,2]
[350928443,1738209050464,-622.94,0.00016986,2]
[350928444,1738209050474,-500.0,0.00016986,2]
[350928445,1738209050483,-500.0,0.00016986,2]
[350928446,1738209050494,-500.0,0.00016986,2]
[350928447,1738209050504,-1288.53,0.00016986,2]
[350928448,1738209050513,-1728.2,0.00016986,2]
[350928449,1738209050523,-542.43,0.00016986,2]
[350928450,1738209050532,-833.99,0.00016986,2]
[350928451,1738209050541,-615.23,0.00016986,2]
[350928452,1738209050551,-533.94,0.00016986,2]
[350928453,1738209050560,-500.0,0.00016986,2]
[350928454,1738209050569,-1081.71,0.00016986,2]
[350928455,1738209050579,-578.58,0.00016986,2]
[350928456,1738209050589,-18833.68,0.00016986,2]
[350928457,1738209050598,-1435.56,0.00016986,2]
[350928458,1738209050607,-1106.24,0.00016986,2]
[350928459,1738209050617,-2144.9,0.00016986,2]
[350928460,1738209050626,-707.88,0.00016986,2]
[350928461,1738209050636,-899.25,0.00016986,2]
[350928462,1738209050746,-500.0,0.00016986,2]
[350928463,1738209050757,-718.31,0.00016986,2]
[350928464,1738209050767,-722.09,0.00016986,2]
[350928465,1738209050777,-1032.93,0.00016986,2]
[350928466,1738209050786,-500.0,0.00016986,2]
[350928467,1738209050796,-1972.78,0.00016986,2]
[350928468,1738209050806,-1029.2,0.00016986,2]
[350928469,1738209050815,-1012.49,0.00016986,2]
[350928470,1738209050824,-2284.74,0.00016986,2]
[350928471,1738209050834,-1276.44,0.00016986,2]
[350928472,1738209050843,-6710.07,0.00016986,2]
[350928473,1738209050852,-667.53,0.00016986,2]
[350928474,1738209050861,-977.82,0.00016986,2]
[350928475,1738209050871,-1736.14,0.00016986,2]
[350928476,1738209050880,-1102.24,0.00016986,2]
[350928477,1738209050890,-3441.28,0.00016986,2]
[350928478,1738209050899,-500.0,0.00016986,2]
[350928479,1738209050909,-500.0,0.00016986,2]
[350928480,1738209050919,-987.75,0.00016986,2]
[350928481,1738209050928,-4247.91,0.00016986,2]
[350928482,1738209050938,-3427.15,0.00016986,2]
[350928483,1738209050947,-500.0,0.00016986,2]
[350928484,1738209050957,-2966.46067744,0.00016986,2]
[350928486,1738209134554,500.0,0.0001452,2]
[350928487,1738209161954,198.0,0.00018,60]
[350928489,1738209191658,296.87,0.00010959,2]
[350928492,1738209202140,247.39,0.00010959,2]
[350928494,1738209212662,206.16,0.00010959,2]
[350928495,1738209223138,171.8,0.00010959,2]
[350928496,1738209233694,859.02,0.00010959,2]
[350928500,1738209401815,360.975897,0.00013973,2]
[350928503,1738209487829,203.0,0.00015101,2]
[350928506,1738209547578,5000.0,0.00015101,2]
[350928507,1738209556155,5000.0,0.00015101,2]
[350928508,1738209564905,2457.85620308,0.00015101,2]
[350928510,1738209572623,5000.0,0.00015101,2]
[350928511,1738209588408,5000.0,0.00015101,2]
[350928512,1738209598497,500.0,0.00014166,2]
[350928513,1738209604582,5000.0,0.00015101,2]
[350928514,1738209620395,1794.6791594,0.00015101,2]
[350928519,1738209771699,2335.4011866,0.00015057,2]
[350928527,1738209834483,411.31828,0.00013699,2]
[350928547,1738210236114,-607.78892119,0.00015206,2]
[350928548,1738210236124,-10.87435611,0.00015277,2]
[350928549,1738210236167,-522.43658719,0.00015277,2]
[350928550,1738210236177,-848.70302967,0.00015306,2]
[350928551,1738210236187,-300.0,0.00015374,2]
[350928552,1738210236197,-18518.1967044,0.00015375,2]
[350928553,1738210236206,-321.50537798,0.00015376,2]
[350928554,1738210236220,-24578.49462202,0.00015376,2]
[350928555,1738210236229,-633.839355,0.00015406,2]
[350928556,1738210236238,-813.99112002,0.00016236,2]
[350928557,1738210236247,-197.14795772,0.00016237,2]
[350928558,1738210236257,-848.70302964,0.00016293,2]
[350928559,1738210236266,-166.20206986,0.00016313,2]
[350928560,1738210236275,-166.20206986,0.0001639,2]
[350928561,1738210236285,-3000.0,0.000164,2]
[350928562,1738210236294,-3000.0,0.0001641,2]
[350928563,1738210236303,-151.519,0.00016413,2]
[350928564,1738210236313,-537.0,0.00016413,2]
[350928565,1738210236322,-2095.969,0.00016413,2]
[350928566,1738210236331,-2316.014,0.00016413,2]
[350928567,1738210236341,-395.0,0.00016413,2]
[350928568,1738210236350,-1657.19979178,0.0001642,2]
[350928569,1738210236367,-1342.80020822,0.0001642,2]
[350928570,1738210236376,-152.40657129,0.00016428,2]
[350928571,1738210236385,-3000.0,0.0001643,2]
[350928572,1738210236395,-500.0,0.00016437,2]
[350928573,1738210236404,-468.30711458,0.00016437,2]
[350928574,1738210236414,-284.10605221,0.00016437,2]
[350928575,1738210236423,-268.2324444,0.00016437,2]
[350928576,1738210236432,-500.0,0.00016437,2]
[350928577,1738210236442,-500.0,0.00016437,2]
[350928578,1738210236451,-389.05697257,0.00016437,2]
[350928579,1738210236460,-500.0,0.00016437,2]
[350928580,1738210236470,-500.0,0.00016437,2]
[350928581,1738210236479,-519.06120247,0.00016437,2]
[350928582,1738210236489,-500.0,0.00016437,2]
[350928583,1738210236498,-485.87530529,0.00016437,2]
[350928584,1738210236510,-14.12469471,0.00016437,2]
[350928585,1738210236520,-500.0,0.00016437,2]
[350928586,1738210236529,-10.92620834,0.00016437,2]
[350928610,1738210238574,-489.07379166,0.00016437,2]
[350928611,1738210238584,-500.0,0.00016437,2]
[350928612,1738210238593,-500.0,0.00016437,2]
[350928613,1738210238603,-500.0,0.00016437,2]
[350928614,1738210238613,-500.0,0.00016437,2]
[350928615,1738210238622,-500.0,0.00016437,2]
[350928616,1738210238632,-500.0,0.00016437,2]
[350928617,1738210238642,-500.0,0.00016437,2]
[350928618,1738210238652,-500.0,0.00016437,2]
[350928619,1738210238662,-500.0,0.00016437,2]
[350928620,1738210238673,-500.0,0.00016437,2]
[350928621,1738210238686,-500.0,0.00016437,2]
[350928622,1738210238695,-500.0,0.00016437,2]
[350928623,1738210238705,-500.0,0.00016437,2]
[350928624,1738210238714,-500.0,0.00016437,2]
[350928625,1738210238724,-500.0,0.00016437,2]
[350928626,1738210238733,-500.0,0.00016437,2]
[350928627,1738210238743,-500.0,0.00016437,2]
[350928628,1738210238752,-500.0,0.00016437,2]
[350928629,1738210238763,-500.0,0.00016437,2]
[350928630,1738210238773,-500.0,0.00016437,2]
[350928631,1738210238782,-500.0,0.00016437,2]
[350928632,1738210238792,-500.0,0.00016437,2]
[350928633,1738210238802,-500.0,0.00016437,2]
[350928634,1738210238812,-500.0,0.00016437,2]
[350928635,1738210238822,-500.0,0.00016437,2]
[350928636,1738210238832,-500.0,0.00016437,2]
[350928637,1738210238842,-500.0,0.00016437,2]
[350928638,1738210238852,-500.0,0.00016437,2]
[350928639,1738210238862,-500.0,0.00016437,2]
[350928640,1738210238871,-500.0,0.00016437,2]
[350928641,1738210238881,-500.0,0.00016437,2]
[350928642,1738210238891,-500.0,0.00016437,2]
[350928643,1738210238901,-500.0,0.00016437,2]
[350928644,1738210238911,-500.0,0.00016437,2]
[350928645,1738210238921,-500.0,0.00016437,2]
[350928646,1738210238931,-500.0,0.00016437,2]
[350928647,1738210238941,-500.0,0.00016437,2]
[350928648,1738210238950,-500.0,0.00016437,2]
[350928649,1738210238960,-500.0,0.00016437,2]
[350928650,1738210238969,-500.0,0.00016437,2]
[350928651,1738210238979,-500.0,0.00016437,2]
[350928652,1738210238988,-500.0,0.00016437,2]
[350928653,1738210238998,-500.0,0.00016437,2]
[350928654,1738210239007,-500.0,0.00016437,2]
[350928655,1738210239016,-500.0,0.00016437,2]
[350928656,1738210239026,-500.0,0.00016437,2]
[350928657,1738210239035,-500.0,0.00016437,2]
[350928658,1738210239045,-556.65809833,0.00016437,2]
[350928659,1738210239054,-500.0,0.00016437,2]
[350928660,1738210239064,-500.0,0.00016437,2]
[350928661,1738210239073,-500.0,0.00016437,2]
[350928662,1738210239082,-500.0,0.00016437,2]
[350928663,1738210239092,-500.0,0.00016437,2]
[350928664,1738210239101,-500.0,0.00016437,2]
[350928665,1738210239111,-500.0,0.00016437,2]
[350928666,1738210239120,-500.0,0.00016437,2]
[350928667,1738210239130,-500.0,0.00016437,2]
[350928668,1738210239139,-500.0,0.00016437,2]
[350928669,1738210239148,-500.0,0.00016437,2]
[350928670,1738210239158,-500.0,0.00016437,2]
[350928671,1738210239168,-500.0,0.00016437,2]
[350928672,1738210239179,-500.0,0.00016437,2]
[350928673,1738210239188,-500.0,0.00016437,2]
[350928674,1738210239199,-500.0,0.00016437,2]
[350928675,1738210239210,-500.0,0.00016437,2]
[350928676,1738210239219,-500.0,0.00016437,2]
[350928677,1738210239229,-500.0,0.00016437,2]
[350928678,1738210239238,-500.0,0.00016437,2]
[350928679,1738210239248,-500.0,0.00016437,2]
[350928680,1738210239257,-500.0,0.00016437,2]
[350928681,1738210239266,-337.76961801,0.00016437,2]
[350928682,1738210239276,-504.07409079,0.00016438,2]
[350928683,1738210239285,-500.0,0.00016438,2]
[350928684,1738210239294,-508.79236728,0.00016438,2]
[350928685,1738210239303,-500.0,0.00016438,2]
[350928686,1738210239312,-539.4080791,0.00016438,2]
[350928687,1738210239322,-500.0,0.00016438,2]
[350928688,1738210239331,-500.0,0.00016438,2]
[350928689,1738210239340,-500.0,0.00016438,2]
[350928690,1738210239349,-500.0,0.00016438,2]
[350928691,1738210239358,-363.30772681,0.00016438,2]
[350928692,1738210239367,-500.0,0.00016438,2]
[350928693,1738210239376,-500.0,0.00016438,2]
[350928694,1738210239386,-500.0,0.00016438,2]
[350928695,1738210239397,-500.0,0.00016438,2]
[350928696,1738210239407,-500.0,0.00016438,2]
[350928697,1738210239418,-500.0,0.00016438,2]
[350928698,1738210239427,-500.0,0.00016438,2]
[350928699,1738210239437,-500.0,0.00016438,2]
[350928700,1738210239446,-500.0,0.00016438,2]
[350928701,1738210239455,-500.0,0.00016438,2]
[350928702,1738210239464,-510.14483406,0.00016438,2]
[350928703,1738210239474,-488.12670524,0.00016438,2]
[350928704,1738210239483,-501.72726376,0.00016438,2]
[350928705,1738210239492,-514.9448482,0.00016438,2]
[350928706,1738210239502,-500.0,0.00016438,2]
[350928707,1738210239511,-513.366145,0.00016438,2]
[350928708,1738210239520,-503.75403089,0.00016438,2]
[350928709,1738210239529,-507.29690526,0.00016438,2]
[350928710,1738210239539,-500.0,0.00016438,2]
[350928711,1738210239548,-508.78166268,0.00016438,2]
[350928712,1738210239557,-276.58476653,0.00016438,2]
[350928713,1738210239566,-505.81296922,0.00016438,2]
[350928714,1738210239575,-506.76907818,0.00016438,2]
[350928715,1738210239584,-507.6300988,0.00016438,2]
[350928716,1738210239593,-503.07213722,0.00016438,2]
[350928717,1738210239602,-597.17991934,0.00016438,2]
[350928718,1738210239612,-505.42959711,0.00016438,2]
[350928719,1738210239621,-500.0,0.00016438,2]
[350928720,1738210239630,-507.97664328,0.00016438,2]
[350928721,1738210239639,-500.0,0.00016438,2]
[350928722,1738210239648,-500.0,0.00016438,2]
[350928723,1738210239657,-500.0,0.00016438,2]
[350928724,1738210239668,-507.26912374,0.00016438,2]
[350928725,1738210239679,-500.0,0.00016438,2]
[350928726,1738210239689,-500.0,0.00016438,2]
[350928727,1738210239698,-510.52811525,0.00016438,2]
[350928728,1738210239708,-495.6181898,0.00016438,2]
[350928729,1738210239718,-506.82267644,0.00016438,2]
[350928730,1738210239728,-500.0,0.00016438,2]
[350928731,1738210239738,-511.81282061,0.00016438,2]
[350928732,1738210239747,-500.0,0.00016438,2]
[350928733,1738210239758,-506.59189875,0.00016438,2]
[350928734,1738210239767,-500.0,0.00016438,2]
[350928735,1738210239777,-500.0,0.00016438,2]
[350928736,1738210239787,-500.0,0.00016438,2]
[350928737,1738210239796,-509.55870399,0.00016438,2]
[350928738,1738210239805,-504.04305189,0.00016438,2]
[350928739,1738210239815,-402.3773098,0.00016438,2]
[350928740,1738210239824,-388.50681934,0.00016438,2]
[350928741,1738210239833,-503.03685126,0.00016438,2]
[350928742,1738210239984,-500.0,0.00016438,2]
[350928743,1738210239994,-500.0,0.00016438,2]
[350928744,1738210240003,-500.0,0.00016438,2]
[350928745,1738210240012,-500.0,0.00016438,2]
[350928746,1738210240022,-494.0,0.00016438,2]
[350928748,1738210240031,-345.85210346,0.00016438,2]
[350928749,1738210240040,-543.07730482,0.00016438,2]
[350928750,1738210240049,-500.0,0.00016438,2]
[350928751,1738210240059,-500.0,0.00016438,2]
[350928752,1738210240068,-500.0,0.00016438,2]
[350928753,1738210240077,-500.0,0.00016438,2]
[350928754,1738210240086,-500.0,0.00016438,2]
[350928755,1738210240095,-707.86,0.00016438,2]
[350928756,1738210240105,-515.56337736,0.00016438,2]
[350928757,1738210240114,-500.0,0.00016438,2]
[350928758,1738210240123,-500.0,0.00016438,2]
[350928759,1738210240132,-200.0,0.00016438,2]
[350928760,1738210240143,-500.0,0.00016438,2]
[350928761,1738210240152,-500.0,0.00016438,2]
[350928762,1738210240173,-500.0,0.00016438,2]
[350928763,1738210240191,-500.0,0.00016438,2]
[350928764,1738210240200,-500.0,0.00016438,2]
[350928765,1738210240210,-500.0,0.00016438,2]
[350928767,1738210240219,-500.0,0.00016438,2]
[350928768,1738210240230,-500.0,0.00016438,2]
[350928769,1738210240240,-500.0,0.00016438,2]
[350928770,1738210240250,-504.31827618,0.00016438,2]
[350928771,1738210240259,-500.0,0.00016438,2]
[350928772,1738210240268,-500.0,0.00016438,2]
[350928773,1738210240277,-500.0,0.00016438,2]
[350928774,1738210240286,-500.0,0.00016438,2]
[350928775,1738210240295,-500.0,0.00016438,2]
[350928776,1738210240304,-500.0,0.00016438,2]
[350928778,1738210240315,-500.0,0.00016438,2]
[350928779,1738210240325,-500.0,0.00016438,2]
[350928780,1738210240334,-500.0,0.00016438,2]
[350928781,1738210240345,-500.0,0.00016438,2]
[350928782,1738210240355,-500.0,0.00016438,2]
[350928784,1738210240364,-500.0,0.00016438,2]
[350928786,1738210240374,-500.0,0.00016438,2]
[350928788,1738210240384,-500.0,0.00016438,2]
[350928790,1738210240393,-500.0,0.00016438,2]
[350928792,1738210240402,-504.16045772,0.00016438,2]
[350928794,1738210240412,-500.0,0.00016438,2]
[350928796,1738210240422,-500.0,0.00016438,2]
[350928798,1738210240431,-500.0,0.00016438,2]
[350928799,1738210240441,-500.0,0.00016438,2]
[350928800,1738210240450,-500.0,0.00016438,2]
[350928801,1738210240460,-500.0,0.00016438,2]
[350928803,1738210240469,-500.0,0.00016438,2]
[350928805,1738210240478,-500.0,0.00016438,2]
[350928807,1738210240487,-992.68,0.00016438,2]
[350928809,1738210240497,-629.89997,0.00016438,2]
[350928811,1738210240506,-500.0,0.00016438,2]
[350928813,1738210240515,-507.74582983,0.00016438,2]
[350928815,1738210240524,-500.0,0.00016438,2]
[350928817,1738210240539,-509.11652345,0.00016438,2]
[350928819,1738210240552,-507.83338909,0.00016438,2]
[350928820,1738210240561,-500.0,0.00016438,2]
[350928822,1738210240571,-514.89781348,0.00016438,2]
[350928824,1738210240581,-802.35,0.00016438,2]
[350928826,1738210240590,-500.0,0.00016438,2]
[350928828,1738210240599,-499.50866725,0.00016438,2]
[350928830,1738210240609,-501.23476105,0.00016438,2]
[350928832,1738210240618,-500.0,0.00016438,2]
[350928834,1738210240627,-500.0,0.00016438,2]
[350928836,1738210240636,-500.0,0.00016438,2]
[350928838,1738210240645,-500.0,0.00016438,2]
[350928840,1738210240655,-150.6565421,0.00016438,2]
[350928853,1738210240786,-249.65776304,0.00016438,2]
[350928855,1738210240795,-500.0,0.00016438,2]
[350928857,1738210240805,-1291.46,0.00016438,2]
[350928859,1738210240815,-501.99572955,0.00016438,2]
[350928861,1738210240824,-500.0,0.00016438,2]
[350928863,1738210240833,-6639.83,0.00016438,2]
[350928865,1738210240843,-500.0,0.00016438,2]
[350928867,1738210240852,-500.0,0.00016438,2]
[350928868,1738210240862,-500.0,0.00016438,2]
[350928870,1738210240872,-1574.25,0.00016438,2]
[350928872,1738210240881,-500.0,0.00016438,2]
[350928874,1738210240891,-500.0,0.00016438,2]
[350928875,1738210240900,-500.0,0.00016438,2]
[350928876,1738210240909,-874.35,0.00016438,2]
[350928877,1738210240920,-500.0,0.00016438,2]
[350928878,1738210240929,-17684.82,0.00016438,2]
[350928879,1738210240939,-500.0,0.00016438,2]
[350928880,1738210240949,-500.0,0.00016438,2]
[350928881,1738210240958,-500.0,0.00016438,2]
[350928882,1738210240968,-632.89,0.00016438,2]
[350928883,1738210240977,-1078.96,0.00016438,2]
[350928884,1738210240986,-500.0,0.00016438,2]
[350928885,1738210240995,-694.9,0.00016438,2]
[350928886,1738210241005,-500.0,0.00016438,2]
[350928887,1738210241015,-1010.19,0.00016438,2]
[350928888,1738210241024,-500.0,0.00016438,2]
[350928889,1738210241034,-501.68490928,0.00016438,2]
[350928890,1738210241043,-624.71,0.00016438,2]
[350928891,1738210241053,-500.0,0.00016438,2]
[350928892,1738210241062,-500.0,0.00016438,2]
[350928893,1738210241071,-1423.86,0.00016438,2]
[350928894,1738210241081,-351.36025391,0.00016438,2]
[350928895,1738210241090,-500.0,0.00016438,2]
[350928896,1738210241100,-500.0,0.00016438,2]
[350928897,1738210241109,-500.0,0.00016438,2]
[350928898,1738210241119,-500.0,0.00016438,2]
[350928899,1738210241128,-500.0,0.00016438,2]